Cogmind - Beta 15 @@@ ROGUE MODE // 2025.10.19 @ 01:08:29 Player: GolbalwarmingLord Result: Destroyed by H-66 Slayer with Heavy Assault Rifle Performance ------------- Evolutions (5) 2500 Regions Visited (4) 800 Robots Destroyed (24) 120 Value Destroyed (613) 613 Prototype IDs (0) 0 Alien Tech Used (0) 0 Bonus (0) 0 TOTAL SCORE: 4033 Bonus ------- None Cogmind --------- Core Integrity 0/1000 Matter 105/300 Energy 100/100 System Corruption 0% Temperature Cool (0) Movement Core (50) Location -5/Factory Parts ------- > --- POWER (3) -------- (None) > --- PROPULSION (4) --- (None) > --- UTILITY (6) ------ (None) > --- WEAPON (4) ------- (None) > --- INVENTORY (5) ---- Subdweller Power Source Improved Kinecellerator Subdweller Laser Battle Rifle Peak State ------------ > --- POWER ------------ Improved Deuterium Engine > --- PROPULSION ------- Light Treads Light Treads > --- UTILITY ---------- Improved Heat Sink Small Storage Unit Seismic Detector Energy Filter Advanced ECM Suite > --- WEAPON ----------- Assault Rifle Battle Rifle Battle Cannon Lance > --- INVENTORY -------- Subdweller Power Source Aluminum Leg Field Propulsion Drive Makeshift Light Armor Plating Subdweller Laser Beam Cannon Hypervelocity Gauss Cannon [Rating: 32] Favorites ----------- Power Subdweller Power Source Engine Subdweller Power Source Power Core Light Nuclear Core Propulsion Aluminum Leg Treads Light Treads Leg Aluminum Leg Flight Unit Field Propulsion Drive Utility Small Storage Unit Device Seismic Detector Storage Small Storage Unit Protection Makeshift Light Armor Plating Weapon Subdweller Laser Energy Gun Subdweller Laser Energy Cannon Beam Cannon Ballistic Gun Assault Rifle Ballistic Cannon Battle Cannon Piercing Weapon Lance Build | -11 -10 -10 -7 -5 ------- Run | Yrd Mat Sub Rec Fac Slots Evolved 10 | . . . . 10 Power 2 | . . . . 2 Propulsion 2 | . . . . 2 Utility 4 | . . . . 4 Weapon 2 | . . . . 2 Parts Attached 27 | 10 3 4 1 9 Power 5 | 2 1 1 1 . Engine 4 | 2 . 1 1 . Core 1 | . 1 . . . Reactor . | . . . . . Propulsion 5 | 4 . . . 1 Treads 2 | 2 . . . . Leg 2 | 2 . . . . Wheel . | . . . . . Hover . | . . . . . Flight 1 | . . . . 1 Utility 6 | 2 . . . 4 Device 4 | 1 . . . 3 Storage 1 | 1 . . . . Processor . | . . . . . Hackware . | . . . . . Protection 1 | . . . . 1 Artifact . | . . . . . Weapon 11 | 2 2 3 . 4 Energy Gun 3 | 2 . 1 . . Energy Cannon 1 | . . . . 1 Ballistic Gun 3 | . 2 1 . . Ballistic Cannon 3 | . . 1 . 2 Launcher . | . . . . . Special Weapon . | . . . . . Impact Weapon . | . . . . . Slashing Weapon . | . . . . . Piercing Weapon 1 | . . . . 1 Special Melee Weapon . | . . . . . Unidentified Prototypes . | . . . . . Parts Lost 21 | . . 5 . 16 Power 3 | . . 2 . 1 Propulsion 5 | . . 1 . 4 Utility 6 | . . . . 6 Weapon 7 | . . 2 . 5 Highest Loss Streak 13 | . . 2 . 13 To Critical Strikes . | . . . . . Average Backups 7 | 2 5 7 7 5 Power . | . 1 . . 1 Propulsion 1 | 1 2 1 1 1 Utility 1 | . . 1 2 1 Weapon 3 | . 1 3 3 1 Tool/Special . | . . . . . Unused Backups 2 | . 1 . . 1 Power 1 | . 1 . . . Propulsion . | . . . . . Utility 1 | . . . . 1 Weapon . | . . . . . Tool/Special . | . . . . . Average Slot Usage (%) 91 | . 100 94 100 54 Engine 7 | . 9 6 14 3 Core 1 | . 4 2 . . Treads 5 | . . . 28 7 Leg 20 | . 28 27 . . Device 14 | . 14 14 14 14 Storage 13 | . 14 14 14 4 Energy Gun 12 | . 16 13 14 2 Ballistic Gun 7 | . 11 5 14 7 Ballistic Cannon 6 | . . 9 . 4 Peak Build Rating 32 | 7 9 11 13 32 Average Rating 10 | 5 7 9 11 22 On Entrance 8 | . 7 9 11 13 Naked Turns 1 | . . . . 1 Heaviest Build 33 | 13 15 18 22 33 Greatest Support 40 | 40 20 40 40 40 Greatest Overweight (x) 10 | . . 1 . 10 Average Overweight (x) . | . . . . . Largest Inventory Capacity 8 | 8 8 8 8 8 Average Capacity 7 | 7 8 8 8 7 Most Carried 8 | 4 8 8 8 8 Average Carried 7 | 2 5 7 7 5 Final Capacity 8 | 8 8 8 8 5 Final Carried 8 | 3 7 6 8 4 Class Distribution -------------------- 93% | Mutant 3% | Gunner Dominant Class ---------------- Mutant | -10/Materials Mutant | -10/Subcaves Mutant | -7/Recycling Gunner | -5/Factory Resources | -11 -10 -10 -7 -5 ----------- Run | Yrd Mat Sub Rec Fac Matter Collected 818 | 274 . 430 114 . Remotely . | . . . . . Salvage Created 962 | 190 29 292 184 267 Parts 47 | 9 3 18 7 10 Haulers Intercepted . | . . . . . Recyclers Shooed 2 | 1 1 . . . Parts Field Recycled . | . . . . . Retrieved Matter . | . . . . . Parts Self-Destructed 17 | . . 17 . . Prevented . | . . . . . Kills | -11 -10 -10 -7 -5 ------- Run | Yrd Mat Sub Rec Fac Combat Hostiles Destroyed 14 | . 1 8 2 3 Guns 6 | . 1 3 2 . Cannons 8 | . . 5 . 3 Classes Destroyed 9 | 3 1 2 1 2 Worker 3 | 2 1 . . . Tunneler 2 | 2 . . . . Recycler 3 | 1 . . 1 1 Turret 2 | . . 2 . . Swarmer 4 | . 1 3 . . Grunt 2 | . . . . 2 Sentry 2 | . . . 2 . Hunter 1 | . . . . 1 Subdweller 5 | . . 5 . . Best Kill Streak 5 | 2 2 5 2 3 Combat Bots Only 3 | . 1 3 1 2 Max Kills in Single Turn 1 | 1 1 1 1 1 Gunslinging . | . . . . . Exploded . | . . . . . Melee . | . . . . . Uniques/NPCs Destroyed . | . . . . . Combat | -11 -10 -10 -7 -5 -------- Run | Yrd Mat Sub Rec Fac Hostile Shots Fired 352 | . 6 101 69 176 Missed 116 | . 2 39 25 50 Hits 236 | . 4 62 44 126 Projectile 236 | . 4 62 44 126 AOE 1 | . . . . 1 Critical Strikes 3 | . . . . 3 Damage Taken 3560 | . 35 786 330 2409 Core 1250 | . . 181 64 1005 Absorbed by Shields . | . . . . . Core Remaining (%) 51 | 100 . . 2 . Volleys Fired 136 | 16 4 92 6 18 Largest 3 | 2 2 2 2 3 Hottest 113 | 80 80 100 85 113 Shots Fired 251 | 31 8 160 12 40 Gun 164 | 31 8 95 12 18 Cannon 87 | . . 65 . 22 Launcher . | . . . . . Special . | . . . . . Kinetic 133 | . . 91 6 36 Thermal 118 | 31 8 69 6 4 Explosive . | . . . . . Electromagnetic . | . . . . . Robot Hit Streak 25 | 8 1 25 5 6 Robot Miss Streak 5 | 3 5 3 1 4 Penetration Max . | . . . . . Secondary Targets . | . . . . . Shots Hit Robots 98 | 17 2 42 9 28 Core Hits 37 | 6 4 17 4 6 Critical Kills 3 | . . . 1 2 Critical Parts Destroyed 3 | . . . . 3 Critical Strikes 8 | . . 2 1 5 Destroy 7 | . . 1 1 5 Blast 1 | . . 1 . . Melee Attacks 6 | . . . . 6 Impact . | . . . . . Slashing . | . . . . . Piercing 6 | . . . . 6 Sneak Attacks 1 | . . . . 1 Combat Hostiles . | . . . . . Follow-up Attacks . | . . . . . Damage Inflicted 1491 | 214 49 600 155 473 Guns 916 | 214 33 401 152 116 Cannons 470 | . . 199 . 271 Explosions . | . . . . . Melee 86 | . . . . 86 Ramming 19 | . 16 . 3 . Kinetic 841 | . . 430 94 317 Thermal 545 | 214 33 170 58 70 Explosive . | . . . . . Electromagnetic . | . . . . . Impact . | . . . . . Slashing . | . . . . . Piercing 86 | . . . . 86 Highest Corruption . | . . . . . Average Corruption . | . . . . . Corruption Purged . | . . . . . Corruption Blocked . | . . . . . Overload Shots . | . . . . . Overflow Damage . | . . . . . Projectiles . | . . . . . Explosions . | . . . . . Melee . | . . . . . Knockbacks 8 | . 1 3 . 4 Impact 1 | . 1 . . . Kinetic 5 | . . 2 . 3 Secondary 2 | . . 1 . 1 Self-Inflicted Damage . | . . . . . Shots . | . . . . . Rammed . | . . . . . Targets Rammed 5 | . 4 . 1 . Kicked 4 | . 4 . . . Crushed 1 | . . . 1 . Highest Temperature 94 | 90 54 9 94 15 Average Temperature 29 | 31 25 7 34 11 Received Heat Transfer 801 | . . 156 96 549 Siege Activations . | . . . . . Martial Activations . | . . . . . Shielding Activations . | . . . . . Robots Disrupted . | . . . . . Combat Hostiles . | . . . . . Robots Corrupted . | . . . . . Combat Hostiles . | . . . . . Parts Fried . | . . . . . Impact Corruptions . | . . . . . Robots Melted . | . . . . . Combat Hostiles . | . . . . . Parts Melted 1 | . . 1 . . Heat Transferred 1073 | 475 75 300 75 148 Parts Sabotaged . | . . . . . Parts Stolen . | . . . . . Parts Stripped . | . . . . . Power Chain Reactions . | . . . . . Alert | -11 -10 -10 -7 -5 ------- Run | Yrd Mat Sub Rec Fac Maximum Alert Level . | . . . . . Low Security (%) 100 | 100 100 . 100 100 Level 1 . | . . . . . Level 2 . | . . . . . Level 3 . | . . . . . Level 4 . | . . . . . Level 5 . | . . . . . High Security . | . . . . . Max Security . | . . . . . Peak Influence 64 | 5 25 . 64 50 Initial 64 | . . . 64 50 Average 7 | . 3 . 9 9 Influence Increases 376 | 25 25 160 45 121 Destroy 0b10 Robot/C 220 | . 20 100 40 60 Destroy 0b10 Robot/NC 40 | 25 5 . 5 5 Destroy Structure 6 | . . . . 6 Advance Influence 50 | . . . . 50 Lose Combat Pursuer 60 | . . 60 . . Influence Decreases 376 | 25 25 24 181 121 Entered New Map 72 | . . . 72 . Time Decay 240 | 25 25 4 109 77 Lost Part 64 | . . 20 . 44 Squads Dispatched 4 | . 2 . . 2 Investigation 1 | . 1 . . . Extermination . | . . . . . Reinforcement 3 | . 1 . . 2 Assault . | . . . . . Garrison . | . . . . . Intercept . | . . . . . Searches Triggered . | . . . . . Construction Impeded . | . . . . . Haulers Reinforced . | . . . . . Active Scanning Responses . | . . . . . Cargo Convoy Interrupts . | . . . . . Stealth | -11 -10 -10 -7 -5 --------- Run | Yrd Mat Sub Rec Fac Distress Signals 1 | . 1 . . . Communications Jammed . | . . . . . Distress Signals . | . . . . . Times Spotted 38 | . 7 14 4 13 Peak Tracking Total 7 | . 2 4 2 7 Tactical Retreats 2 | . . 2 . . Traps | -11 -10 -10 -7 -5 ------- Run | Yrd Mat Sub Rec Fac Traps Triggered 3 | . . 3 . . Indirectly . | . . . . . Trap Hack Attempts . | . . . . . Triggered . | . . . . . Disarmed . | . . . . . Reprogrammed . | . . . . . Reused . | . . . . . Traps Extracted . | . . . . . Installed . | . . . . . Triggered . | . . . . . Machines | -11 -10 -10 -7 -5 ---------- Run | Yrd Mat Sub Rec Fac Machines Disabled 2 | . . 2 . . Max in Single Turn 1 | . . 1 . . Machines Repaired . | . . . . . Machines Dismantled . | . . . . . Machines Sabotaged . | . . . . . Overloaded Fab Kills . | . . . . . Hacking | -11 -10 -10 -7 -5 --------- Run | Yrd Mat Sub Rec Fac Machines Accessed 7 | . . . 7 . Terminals 4 | . . . 4 . Fabricators . | . . . . . Repair Stations . | . . . . . Recycling Units 3 | . . . 3 . Scanalyzers . | . . . . . Garrison Access . | . . . . . Total Hacks 15 | . . . 15 . Successful 2 | . . . 2 . Failed 13 | . . . 13 . Catastrophic 2 | . . . 2 . Database Lockouts . | . . . . . Manual 1 | . . . 1 . Terminals 7 | . . . 7 . Fabricators . | . . . . . Repair Stations . | . . . . . Recycling Units 8 | . . . 8 . Scanalyzers . | . . . . . Garrison Access . | . . . . . Terminal Hacks . | . . . . . Fabricator Hacks . | . . . . . Repair Station Hacks . | . . . . . Recycling Unit Hacks 2 | . . . 2 . Retrieve Components 2 | . . . 2 . Scanalyzer . | . . . . . Garrison Access Hacks . | . . . . . Unauthorized Hacks . | . . . . . Terminals . | . . . . . Fabricators . | . . . . . Repair Stations . | . . . . . Recycling Units . | . . . . . Scanalyzers . | . . . . . Garrison Access . | . . . . . Data Cores Recovered . | . . . . . Used . | . . . . . Hacking Detections 6 | . . . 6 . Full Trace Events 1 | . . . 1 . Feedback Events . | . . . . . Feedback Blocked . | . . . . . Robot Schematics Acquired . | . . . . . Robots Built . | . . . . . Authchips . | . . . . . Time . | . . . . . Total Robot Build Rating . | . . . . . Part Schematics Acquired . | . . . . . Parts Built . | . . . . . Authchips . | . . . . . Time . | . . . . . Total Part Build Rating . | . . . . . Parts Repaired . | . . . . . Time . | . . . . . Parts Recycled . | . . . . . Recycled Matter . | . . . . . Retrieved Matter . | . . . . . Retrieved Components 3 | . . . 3 . Parts Scanalyzed . | . . . . . Part Schematics Acquired . | . . . . . Parts Damaged . | . . . . . Bothacking | -11 -10 -10 -7 -5 ------------ Run | Yrd Mat Sub Rec Fac Used RIF Installer . | . . . . . Robots Hacked . | . . . . . Non-combat . | . . . . . Combat . | . . . . . Robot Hacks Applied . | . . . . . Relay Couplers Released . | . . . . . Fabnet Peak Effective % . | . . . . . Robots Rewired . | . . . . . Allies Hacked . | . . . . . Hacks Repelled . | . . . . . Allies | -11 -10 -10 -7 -5 -------- Run | Yrd Mat Sub Rec Fac Total Allies . | . . . . . Largest Group . | . . . . . Highest-Rated Group . | . . . . . Highest-Rated Ally . | . . . . . Total Orders . | . . . . . Ally Attacks . | . . . . . Total Damage . | . . . . . Kills . | . . . . . Allies Corrupted . | . . . . . Allies Melted . | . . . . . Intel | -11 -10 -10 -7 -5 ------- Run | Yrd Mat Sub Rec Fac Active Infowar (turns) 4312 | 14 174 3124 671 329 Seismic 4312 | 14 174 3124 671 329 ECM 2 | . . . . 2 Robot Analysis Total . | . . . . . Derelict Logs Recovered 1 | . . 1 . . Drone Launches . | . . . . . Drone Recoveries . | . . . . . Exploration | -11 -10 -10 -7 -5 ------------- Run | Yrd Mat Sub Rec Fac Turns Passed 4586 | 243 174 3124 671 374 Spaces Moved 3132 | 122 122 2321 396 171 Core 30 | 7 . . . 23 Treads 641 | 95 . 9 396 141 Legs 2461 | 20 122 2312 . 7 Wheels . | . . . . . Hover . | . . . . . Flight . | . . . . . Fastest Speed 50 | 50 120 120 160 50 Average Speed 129 | 147 120 120 160 170 Slowest Speed 550 | 160 120 190 160 550 Overloaded Moves . | . . . . . Propulsion Burnouts . | . . . . . Robots Hopped . | . . . . . Potential Cave-ins . | . . . . . Cave-ins Triggered . | . . . . . Exploration Rate (%) 40 | 7 30 92 68 6 Regions Visited 4 Branch Regions 2 Pre-discovered Areas . | . . . . . Known Exits Taken . | . . . . . Unknown Exits Taken 4 | 1 1 1 1 . Scrap Searched 11 | . . 11 . . Spaces Dug 2 | . . 2 . . Terrain Destroyed 3 | . . 2 . 1 Melee . | . . . . . Projectile 3 | . . 2 . 1 AOE . | . . . . . Terrain Rammed . | . . . . . Walls Destroyed . | . . . . . Machines Disabled . | . . . . . Actions | -11 -10 -10 -7 -5 --------- Run | Yrd Mat Sub Rec Fac Total 3407 | 152 140 2480 421 214 Wait 71 | . . 52 16 3 Move 3128 | 121 121 2320 395 171 Hop . | . . . . . Pick Up 21 | 3 6 5 2 5 Fast Attach 7 | 6 . 1 . . Attach 16 | 3 . 4 . 9 Detach 2 | 2 . . . . Swap 11 | 1 3 4 1 2 Drop 4 | . 2 2 . . Fire 136 | 16 4 92 6 18 Melee 6 | . . . . 6 Ram . | . . . . . Kick 4 | . 4 . . . Crush 1 | . . . 1 . Escape Stasis . | . . . . . Rewire . | . . . . . Trap . | . . . . . Miscellaneous . | . . . . . Route ------- -11/Scrapyard -10/Materials (discovered 2 exits: [*Mat] / [*Sub]) -10/Subcaves (discovered 5 exits: [*Mat x2] / *Rec / [*Scr x2]) -7/Recycling -5/Factory History --------- Turn | Location | Event 13 | -11/Scrapyard | Discovered new exit (range 14) 244 | -11/Scrapyard | Entered Materials 245 | -10/Materials | Met a group of wandering Federalists 308 | -10/Materials | Build established: Mutant 384 | -10/Materials | Discovered new exit (range 16) 400 | -10/Materials | Discovered new exit (range 11) 418 | -10/Materials | Entered Subcaves 419 | -10/Subcaves | Continued accompanying wandering Federalists (3) 419 | -10/Subcaves | Approached by a straggling Scientist 539 | -10/Subcaves | Shifting Twisted Machinery released Mak. Light Armor Plating 539 | -10/Subcaves | Shifting Twisted Machinery released Sub. Laser 612 | -10/Subcaves | Wandering Federalist uncovered a shortcut to Scraptown 926 | -10/Subcaves | Discovered new exit (range 16) 1476 | -10/Subcaves | Disturbed a concealed Subdweller 1747 | -10/Subcaves | Shifting Twisted Machinery released Mak. Flight Unit 1877 | -10/Subcaves | Discovered new exit (range 8) 1883 | -10/Subcaves | Learned 8 Materials zone layouts 1962 | -10/Subcaves | A swath of the cavern ceiling suddenly collapsed 2801 | -10/Subcaves | Shifting Twisted Machinery released Flamer 2834 | -10/Subcaves | Shifting Twisted Machinery released Sub. Power Source 3472 | -10/Subcaves | Discovered new exit (range 9) 3474 | -10/Subcaves | Core integrity fell below 50% 3476 | -10/Subcaves | Scientist uncovered a shortcut to Scraptown 3542 | -10/Subcaves | Entered Recycling 3543 | -7/Recycling | Met a Zionite searching for Scraptown 3975 | -7/Recycling | Core integrity fell below 20% 4178 | -7/Recycling | Discovered new exit (range 16) 4213 | -7/Recycling | Entered Factory 4213 | -5/Factory | Evolved 10 slots: Power x2, Propulsion x2, Utility x4, Weapon x2 4573 | -5/Factory | Lost 13 parts (1p4n4u4w) 4573 | -5/Factory | Core integrity fell below 50% 4584 | -5/Factory | Core integrity fell below 20% 4587 | -5/Factory | Destroyed by H-66 Slayer with Heavy Assault Rifle Last Messages --------------- M-28 Smith fits Backup Propulsion III on H-66 Slayer. Penetrated by Slug. G-50 Soldier suffers critical hit (Burn). Slug penetrates Wall. Nuclear Reactor explodes. Sml. Storage Unit destroyed. Mak. Light Armor Plating destroyed. Nuclear Reactor explodes. U-05 Engineer lays Concrete. Penetrated by Slug. U-05 Engineer lays Concrete. The unstable cave ceiling collapses. U-05 Engineer lays Concrete. Penetrated by Slug. The unstable cave ceiling collapses. Critical hit (Burn: +37). U-05 Engineer builds a Wall. Penetrated by Slug. Lance destroyed. Map ----- +----------------------------------------------------+ | ?????????????????????????????????????????????????? | | ?????????????????????????????????????????????????? | | ?????????????????????????????????????????????????? | | ?????????????????????????????????????????????????? | | ?????????????????????????????????????????????????? | | ?????????????????????????????????????????????????? | | ?????????????????????????????????????????????????? | | ?????????????????????????? ??????????????????????? | | ??????????????????????####+#########?????????????? | | ??????????????????????# #?????????????? | | ??????????????????????# #?????????????? | | ??????????????????????# hh #########?????? | | ??????????????????????# # #?????? | | ??????????????????????# # #?????? | | ??????????????????????# # #?????? | | ??????????????????????# # #?????? | | ??????????????????????# # #?????? | | ??????????????????????# # #?????? | | ??????????????????????# +% #?????? | | ??????????????????????# # #?????? | | ?????????############## ! # #?????? | | ?????????# # *=! # #?????? | | ?????????#""" ! *=%=! # #?????? | | ?????????#"R h ==%% # ] # # | | ??????????""" # =% # / # | | ?????????# u @g % + #?????? | | ?????????# m g # # ? ? | | ?????????# g % # # # | | ?????????# ! ###### #! # # | | ?????????# #????# ######### # | | ?????????# #????# # | | ?????????# #?#### # | | ?????????# ##?# % # | | ?????????# # # #??# # | | ?????????## #####??# ""%"" """ """ """ # | | ??????????## # |#??# ""F"" """ """ """ # | | ???????????###### #??# """ """ """ """ # | | ????????????????# """ #### | | ????????????????# """ + | | ????????????????# """ ####+######### | | ????????????????# #?? ???????# | | ????????????????########?? ""???????# | | ????????????????????????? """?????#####+######### | | ????????????????????????? """?????# ! #???? | | ???????????????????????? ????# #???? | | ???????????????????????? ????# """ #???? | | ???????????????????????# ????# "" #???? | | ???????????????????????# ""T??????# "" #???? | | ???????????????????????# "????????# #???? | | ???????????????????????###?????????# #???? | +----------------------------------------------------+ Best States ------------- Heat Dissipation 54 Energy Generation 16 Energy Capacity 290 Matter Stores 300 Matter Capacity 300 Sight Range 16 Terrain Scan Density 10 Armor Coverage 100 Evasion (%) 55 Recoil Reduction 2 Energy Filtering 30 Item Schematics ----------------- None Robot Schematics ------------------ None Fabricated ------------ Nothing Repaired ---------- Nothing Alien Tech Used ----------------- None Achievements -------------- Close Call Challenges ------------ None Game ------ Seed LightProtonVibroblade Manual? 0 Play Time 00:35:16 Cumulative 8.7 hours Start 2025.10.16 @ 00:10:37 End 2025.10.19 @ 01:08:29 Sessions 5 Manual Loads 0 Difficulty Rogue Special Mode None Game No. 14 Rogue 6 Adventurer 8 Explorer 0 Win Type - Total 0 Types 0/0/0/0/0/0/0/0/0/0 Lore% 4 Gallery% 14 Achievement% 18 Wizard Run 0 Options --------- Layout 1 ASCII 0 Keyboard 0 Movement Arrows Keybinds 0 Fullscreen 1 Font 24/Smallcaps Map View 50x40 Zoom Use 0% Tactical HUD 0 Map Filters NONE Filters NONE Steam 1 RUN: d44e34fc-d497-4602-ab5c-a4615c5f4678